[Event "Charlotte IM-D May 2022"]
[Site "Charlotte"]
[Date "2022.05.07"]
[Round "6.5"]
[White "Chen, Ryo"]
[Black "Kanli, Alperen"]
[Result "1-0"]
[ECO "B19"]
[WhiteElo "2265"]
[BlackElo "2173"]
[Annotator "TA"]
[PlyCount "65"]
[EventDate "2022.05.04"]
[EventType "tourn"]
[EventCountry "USA"]
[SourceTitle "playchess.com"]
[Source "ChessBase"]
[SourceQuality "1"]
[TimeControl "5400+30"]

{[%evp 31,65,25,44,20,50,20,33,0,37,30,29,0,0,0,0,0,0,0,0,0,0,0,0,0,0,0,591,568,760,760,876,876,5606,5602,6503,5677]} 1. e4 {[%emt 0:00:01]} c6 {[%emt 0:00:06]} 2. d4 {[%emt 0:00:07]} d5 {[%emt 0:00:04]} 3. Nd2 {[%emt 0:00:33]} dxe4 {[%emt 0:00:07]} 4. Nxe4 {[%emt 0:00:07]} Bf5 {[%emt 0:00:07]} 5. Ng3 {[%emt 0:00:26]} Bg6 {[%emt 0:00:08]} 6. h4 {[%emt 0:00:12]} h6 {[%emt 0:00:07]} 7. Nf3 {[%emt 0:00:16]} Nd7 {[%emt 0:00:07]} 8. h5 {[%emt 0:00:17]} Bh7 {[%emt 0:00:02]} 9. Bd3 {[%emt 0:00:11]} Bxd3 {[%emt 0:00:07]} 10. Qxd3 {[%emt 0:00:09]} e6 {[%emt 0:00:08]} 11. Bd2 {[%emt 0:00:13]} Ngf6 {[%emt 0:00:09]} 12. O-O-O {[%emt 0:00:16]} Bd6 {[%emt 0:00:08]} 13. Ne4 {[%emt 0:00:41]} Nxe4 {[%emt 1:35:40]} 14. Qxe4 {[%emt 0:00:08]} Nf6 {[%emt 0:00:00]} 15. Qe2 {[%emt 0:00:35]} Qc7 {[%emt 0:00:00]} 16. Ne5 {[%emt 0:06:08] 16.Kb1 is setting a new trend.} O-O-O {[%emt 0:00:00]} 17. Rh4 {[%emt 0:07:10] B19: Classical Caro-Kann: 4...Bf5 main line.} Nd5 {[%emt 0:00:00] [#]} 18. a3 $146 {[%emt 0:10:38]} ({Predecessor:} 18. c4 Bxe5 19. dxe5 Nb6 20. Rg4 Rhg8 21. Kc2 c5 22. Bc1 Rxd1 23. Kxd1 Qd8+ 24. Kc2 {0-1 (48) Koval,J (2070)-Tomcikova,Z (1746) Slovakia 2017}) 18... c5 {[%emt 0:00:00]} 19. Kb1 {[%emt 0:11:44] White is slightly better.} (19. Rg4 $5 {[%cal Rg4g7]}) 19... Kb8 {[%emt 0:00:00]} ({Don't do} 19... cxd4 20. Rxd4 $1 Kb8 21. Rc4 $1 $16) 20. c4 {[%emt 0:02:09]} Bxe5 {[%emt 0:00:00]} ({Much less strong is} 20... cxd4 21. cxd5 Bxe5 22. Rc1 $16) 21. dxe5 {[%emt 0:07:49]} (21. Qxe5 $5 {[%cal Rc4d5]} cxd4 22. Qxc7+ Nxc7 23. Bf4 $11) 21... Ne7 {[%emt 0:00:00]} 22. Bc3 {[%emt 0:03:18]} Rxd1+ {[%emt 0:00:00]} 23. Qxd1 {[%emt 0:00:08]} Rd8 {[%emt 0:05:00]} 24. Qf3 {[%emt 0:03:21]} Nf5 {[%emt 0:00:00]} 25. Rf4 {[%emt 0:02:25]} Rd7 {[%emt 0:00:00]} 26. Ka2 {[%emt 0:10:17]} a5 {[%emt 0:00:00]} 27. Qe2 {[%emt 0:08:47][%cal Of4f5] And now Rxf5! would win.} Nd4 {[%emt 0:00:00]} 28. Qe3 {[%emt 0:04:30][%cal Rc3d4]} Nf5 {[%emt 0:00:00][%mdl 8192] [#]} (28... Nc2 $11 {and Black has nothing to worry.} 29. Qc1 (29. Qg3 $2 a4 $19) 29... Nd4) 29. Rxf5 $1 $18 {[%emt 0:01:27][%mdl 512] White is clearly winning.} exf5 {[%emt 0:00:00] [#]} (29... a4 30. Rf3) 30. e6 $1 {[%emt 0:00:08][%mdl 64] Discovered Attack} f4 {[%emt 0:00:00]} 31. Qe4 {[%emt 0:01:15]} Rd4 {[%emt 0:00:00]} 32. Bxd4 {[%emt 0:00:52]} f5 {[%emt 0:00:00]} 33. Qe2 {[%emt 0:00:19] Weighted Error Value: White=0.07 (flawless) /Black=0.64} 1-0

[Event "Charlotte IM-D May 2022"]
[Site "Charlotte"]
[Date "2022.05.08"]
[Round "7.1"]
[White "Kanli, Alperen"]
[Black "Rosenberg, Evan S"]
[Result "1-0"]
[ECO "E20"]
[WhiteElo "2173"]
[BlackElo "2035"]
[Annotator "TA"]
[PlyCount "91"]
[EventDate "2022.05.04"]
[EventType "tourn"]
[EventCountry "USA"]
[SourceTitle "playchess.com"]
[Source "ChessBase"]
[SourceQuality "1"]
[TimeControl "5400+30"]

{[%evp 11,91,1,16,0,0,-11,-12,-6,19,10,8,0,9,10,44,37,40,33,45,42,96,83,95,103,131,77,108,118,139,122,105,0,145,0,0,0,-2,-75,-67,-73,47,32,41,12,16,20,45,68,117,115,400,395,565,552,1099,1072,1056,1047,890,566,566,562,559,557,558,545,550,539,531,516,558,514,590,516,522,510,666,658,12841,12839,29991,29991]} 1. d4 {[%emt 0:00:02]} Nf6 {[%emt 1:31:00]} 2. c4 {[%emt 0:00:03]} e6 {[%emt 0:00:00]} 3. Nc3 {[%emt 0:00:04]} Bb4 {[%emt 0:00:00]} 4. f3 {[%emt 0:00:06]} d5 {[%emt 0:00:00]} 5. a3 {[%emt 0:00:04]} Bxc3+ {[%emt 0:00:00]} 6. bxc3 {[%emt 0:00:05]} c6 {[%emt 0:00:00]} 7. cxd5 {[%emt 0:00:43] E20: Nimzo-Indian: 4 g3 and 4 f3.} cxd5 {[%emt 0:03:00]} (7... Nxd5 8. Qc2 $14) 8. e3 {[%emt 0:02:08]} O-O {[%emt 0:00:00]} 9. Bd3 {[%emt 0:00:39] The position is equal.} b6 {[%emt 0:00:00]} 10. Ne2 {[%emt 0:00:46]} Ba6 {[%emt 0:00:00]} 11. O-O {[%emt 0:00:23]} Bxd3 {[%emt 0:00:00]} 12. Qxd3 {[%emt 0:00:02]} Nbd7 {[%emt 0:02:30] [#]} 13. c4 $146 {[%emt 1:31:55]} ({Predecessor:} 13. e4 dxe4 14. fxe4 Nc5 15. Qh3 Ncxe4 16. Bf4 Nd7 17. Qd3 Nef6 18. Bg5 Qc7 19. Ng3 {0-1 (30) David,A (2428)-Praggnanandhaa,R (2608) Chess.com INT 2020}) 13... dxc4 {[%emt 0:00:30]} 14. Qxc4 {[%emt 0:00:00]} e5 {[%emt 0:00:30]} 15. Bb2 {[%emt 0:00:00]} b5 {[%emt 0:00:30]} (15... Rc8 $14 16. Qb5 e4) 16. Qb3 $16 {[%emt 0:01:30] White is more active.} (16. Qxb5 $2 Rb8 17. Qd3 Rxb2 $19) 16... e4 {[%emt 0:00:30]} 17. Ng3 {[%emt 0:00:00]} (17. Qxb5 $2 Rb8 18. Qg5 Rxb2 $19) 17... exf3 {[%emt 0:00:00]} 18. gxf3 {[%emt 0:00:00]} (18. Rxf3 $142 Nb6 19. Rd1 (19. Qxb5 Re8 $16)) 18... Nb6 {[%emt 0:00:00][%cal Bd7b6,Bb6c4,Bc4e3][%mdl 32]} 19. Qxb5 {[%emt 0:00:00]} Nfd5 {[%emt 0:00:00] [#]} 20. e4 {[%emt 0:00:00]} Ne3 {[%emt 0:00:00] [#]} 21. Rfc1 {[%emt 0:00:00] Against Nbc4} (21. Rf2 $1 $16) 21... Rb8 {[%emt 0:00:00]} (21... Nbc4 $1 $11 22. Bc3 (22. Rxc4 $2 Rb8 $19) 22... Qf6) 22. Bc3 {[%emt 0:00:00]} (22. Qe2 $16 Nbc4 23. Bc3) 22... Nbc4 $11 {[%emt 0:00:00] Pair of Knights!} 23. Qh5 {[%emt 0:00:00]} Rb6 {[%emt 0:00:00]} 24. Nf5 {[%emt 0:00:00] Prevents Rh6.} (24. f4 $11 {keeps the balance.}) 24... Rg6+ $17 {[%emt 0:00:00]} 25. Kh1 {[%emt 0:00:00]} Nxf5 {[%emt 0:04:30]} ({Black should play} 25... Rg5 $17 26. Qh3 Nxf5 27. exf5 (27. f4 Rg6 $11) 27... Qd5) 26. Qxf5 $14 {[%emt 0:00:00]} Ne3 {[%emt 0:00:00]} 27. Qh3 $36 {[%emt 0:00:00][%mdl 2048] White is more active.} (27. Qf4 $5 {[%cal Rf4e3]} Ng2 28. Qf5 $16 (28. Qd2 Nh4 $14)) 27... f5 $1 {[%emt 0:00:00] And now ...fxe4 would win.} 28. Rg1 {[%emt 0:00:00]} Qc7 {[%emt 0:00:00]} 29. Bb4 {[%emt 0:00:00]} Rff6 {[%emt 0:00:00]} (29... Re8 $14 {was preferrable.}) 30. d5 $16 {[%emt 0:00:00][%cal Bd4d5,Bd5d6][%mdl 32] aiming for d6. Chess con chili.} fxe4 $2 {[%emt 0:00:00][%mdl 8192] This costs Black the game.} (30... a5 $16 31. Bd2 Rh6) 31. d6 $18 {[%emt 0:00:00]} Qd8 {[%emt 0:00:00]} (31... Rxg1+ $2 32. Rxg1 Rxd6 33. fxe4 $18) (31... Rxd6 $142 32. Bxd6 (32. fxe4 Rd3 $11) 32... Qxd6 33. Qc8+ Kf7 34. Qb7+ Kf6 35. Qxa7 Qf4 36. Qd4+ Kf7 37. Qd7+ Kf8 38. Qc8+ Kf7 39. Qb7+ Kg8 40. Qc8+ Kf7 41. Qb7+ Kg8 42. Qxe4 Qxe4 43. fxe4 Ra6) 32. fxe4 {[%emt 0:08:00]} Nc4 {[%emt 0:03:30]} 33. Qb3 {[%emt 0:00:00]} Qc8 {[%emt 0:00:00]} 34. Rxg6 {[%emt 0:00:00]} hxg6 {[%emt 0:00:00]} 35. d7 {[%emt 0:00:00]} Qxd7 {[%emt 0:00:00]} 36. Qxc4+ {[%emt 0:00:00]} Kh7 {[%emt 0:00:00]} 37. Rf1 {[%emt 0:00:00] Prevents Rf3.} Rc6 {[%emt 0:00:00]} 38. Qf7 {[%emt 0:00:00]} Qg4 {[%emt 0:00:40]} 39. Qf4 {[%emt 0:00:00]} Qh3 {[%emt 0:00:35] Strongly threatening ...Rf6.} 40. Qf3 {[%emt 0:00:00]} Qh4 {[%emt 0:00:47]} 41. Be1 {[%emt 0:00:00]} Qh6 {[%emt 0:00:14]} 42. Qf4 {[%emt 0:00:00]} g5 {[%emt 0:00:04]} 43. Qf5+ {[%emt 0:00:00]} Kh8 {[%emt 0:00:02]} 44. e5 {[%emt 0:00:00][%cal Be4e5,Be5e6][%mdl 32]} Rc4 {[%emt 0:00:13]} 45. e6 {[%emt 0:00:00] Threatening mate with Rf3.} Rc1 {[%emt 0:02:10]} 46. Qe4 {[%emt 0:00:00] Weighted Error Value: White=0.30/Black=0.39} 1-0

[Event "Charlotte IM-D May 2022"]
[Site "Charlotte"]
[Date "2022.05.08"]
[Round "7.2"]
[White "Zaloznyy, Mike"]
[Black "Chen, Ryo"]
[Result "1/2-1/2"]
[ECO "D00"]
[WhiteElo "2125"]
[BlackElo "2265"]
[Annotator "TA"]
[PlyCount "160"]
[EventDate "2022.05.04"]
[EventType "tourn"]
[EventCountry "USA"]
[SourceTitle "playchess.com"]
[Source "ChessBase"]
[SourceQuality "1"]
[TimeControl "5400+30"]

{[%evp 9,160,0,2,5,5,-5,35,37,45,33,48,46,142,159,184,45,59,22,71,-26,150,155,142,148,169,175,185,187,171,176,170,169,164,184,195,185,190,200,199,195,198,195,193,173,175,187,233,1,8,8,8,8,8,8,8,8,8,8,8,5,8,8,8,8,9,13,8,8,10,0,0,0,8,8,8,8,8,8,8,8,8,0,8,0,12,8,8,8,8,8,8,8,8,8,8,8,8,8,8,8,8,8,8,8,8,8,8,8,8,8,8,8,8,8,8,8,8,8,8,8,8,8,8,8,8,8,8,0,0,0,0,0,0,0,0,0,0,0,0,0,0,0,0,0,0,0,0,0,0,0,0,0,0]} 1. d4 {[%emt 0:05:51]} Nf6 {[%emt 0:00:14]} 2. Nf3 {[%emt 0:00:06]} g6 {[%emt 0:00:11]} 3. Nc3 {[%emt 0:00:05]} d5 {[%emt 0:00:14]} 4. Bf4 {[%emt 0:00:07]} Bg7 {[%emt 0:00:43]} 5. Nb5 {[%emt 0:00:12]} Na6 {[%emt 0:00:15]} 6. e3 {[%emt 0:00:19] D00: 1 d4 d5: Unusual lines.} c6 {[%emt 0:00:18]} 7. Nc3 {[%emt 0:00:09]} O-O {[%emt 0:02:56]} 8. Bxa6 {[%emt 0:00:09] White is slightly better.} bxa6 {[%emt 0:00:33]} 9. Ne5 {[%emt 0:00:06] [#]} c5 $146 {[%emt 0:02:08]} ({Predecessor:} 9... Bb7 10. Na4 Nh5 11. Nc5 Qc8 12. g4 Nxf4 13. exf4 f6 14. Ned3 a5 15. h4 Re8 {1-0 (69) Gelman,A (2403)-Alinasab,M (2325) Chess.com INT 2022}) 10. dxc5 {[%emt 0:01:12]} Qa5 {[%emt 0:00:32]} (10... Bf5 $14) 11. Qd4 $16 {[%emt 0:01:04] aiming for Nc6.} Nh5 {[%emt 0:16:55] [#]} 12. b4 {[%emt 0:02:37]} (12. Qxd5 Be6 13. Qd4 Rac8 $15) (12. Bh6 $1 $18 {[%cal Rh6g7][%mdl 512]}) 12... Qd8 $14 {[%emt 0:04:58]} 13. O-O {[%emt 0:08:34]} (13. Nxd5 e6 14. Bh6 Qxd5 15. Bxg7 Qxd4 16. exd4 Kxg7 $17) (13. Qxd5 Be6 14. Qe4 Bf5 $11) 13... e6 {[%emt 0:03:49]} (13... f6 $11) 14. g4 {[%emt 0:04:22] [#]} ({White should try} 14. Rad1 $16) 14... f6 $1 {[%emt 0:15:30]} 15. Nc6 $36 {[%emt 0:00:13][%mdl 2048] White is in control.} (15. gxh5 $2 fxe5 16. Qd3 exf4 $19) 15... Qe8 {[%emt 0:07:00] [#]} 16. Bd6 {[%emt 0:11:16] Hoping for Ne7+. White is much more active.} Qxc6 {[%emt 0:15:22]} (16... Rf7 17. Na5) 17. Bxf8 {[%emt 0:04:29]} (17. gxh5 Rf7 $16) 17... Kxf8 {[%emt 0:02:18]} 18. gxh5 {[%emt 0:01:16]} f5 {[%emt 0:03:06]} 19. Qd3 {[%emt 0:06:53]} Bb7 {[%emt 0:07:51] [#]} 20. f3 $1 {[%emt 0:00:24]} a5 {[%emt 0:01:09] [#]} 21. a3 {[%emt 0:02:21][%cal Ba2a3,Ba3b4,Bb4a5][%mdl 32]} (21. bxa5 Ba6 22. Qd2 Qxc5 $15) 21... Bf6 {[%emt 0:04:07]} 22. hxg6 {[%emt 0:07:28]} hxg6 {[%emt 0:01:51]} 23. Rab1 {[%emt 0:01:39]} axb4 {[%emt 0:02:53]} 24. axb4 {[%emt 0:00:25]} a5 {[%emt 0:01:32]} 25. bxa5 {[%emt 0:00:08] And now Rb6 would win.} Ba6 {[%emt 0:01:06]} 26. Nb5 {[%emt 0:01:26] c4 is the strong threat.} Qxc5 {[%emt 0:00:15]} 27. Rfd1 {[%emt 0:05:01]} f4 {[%emt 0:01:22]} (27... Be7 $142 28. Qd4 Kf7 29. Qxc5 Bxc5) 28. Nd4 $2 {[%emt 0:03:28]} Bxd3 $11 {[%emt 0:01:33] The position is equal.} 29. Nxe6+ {[%emt 0:00:03][%cal Bd4e6,Be6c5,Bc5d7,Bd7e5,Be5c6,Bc6e7,Be7f5][%mdl 32]} Kg8 $1 {[%emt 0:00:15]} 30. Nxc5 {[%emt 0:00:11]} Bxc2 {[%emt 0:00:28] A strong pair of Bishops.} 31. Nd7 {[%emt 0:09:20]} Bg7 {[%emt 0:01:20]} 32. exf4 {[%emt 0:02:18][%cal Od7e5]} Bxb1 {[%emt 0:00:55]} 33. Rxb1 {[%emt 0:00:14]} Rxa5 {[%emt 0:00:35][%mdl 4096] Endgame KRB-KRN} 34. Ne5 {[%emt 0:00:13]} g5 {[%emt 0:00:32]} 35. Nc6 {[%emt 0:00:57]} Rc5 {[%emt 0:00:15]} 36. Ne7+ {[%emt 0:00:17]} Kf8 {[%emt 0:00:57]} 37. Nf5 {[%emt 0:01:05] Inhibits Bd4+.} Bf6 {[%emt 0:00:31]} 38. Rb6 {[%emt 0:00:39]} Kf7 {[%emt 0:00:22]} 39. Nh6+ {[%emt 0:02:58]} Kg7 {[%emt 0:00:43] Threatens to win with ...Bd4+.} 40. Nf5+ {[%emt 0:03:38]} Kf7 {[%emt 0:00:16]} 41. fxg5 {[%emt 0:00:59]} Bxg5 {[%emt 0:00:42]} 42. h4 {[%emt 0:00:10][%cal Bh2h4,Bh4h5,Bh5h6,Bh6h7][%mdl 32]} Bf4 {[%emt 0:00:40]} 43. Kg2 {[%emt 0:00:29]} Rc4 {[%emt 0:01:50]} 44. h5 {[%emt 0:00:50]} d4 {[%emt 0:00:42]} 45. h6 {[%emt 0:01:18]} d3 {[%emt 0:00:21]} 46. h7 {[%emt 0:02:29] Strongly threatening Rb7+.} Rc8 {[%emt 0:00:20]} 47. Nd6+ {[%emt 0:00:32]} Bxd6 {[%emt 0:00:10]} 48. Rxd6 {[%emt 0:00:04] KR-KR} Kg7 {[%emt 0:00:09]} 49. Rd7+ {[%emt 0:00:16]} Kh8 {[%emt 0:00:08]} 50. Kf2 {[%emt 0:00:45]} d2 {[%emt 0:00:17]} 51. Ke3 {[%emt 0:01:16]} Rc3+ {[%emt 0:00:58]} 52. Ke2 {[%emt 0:01:36]} d1=Q+ {[%emt 0:02:23]} 53. Rxd1 {[%emt 0:00:04] Black must now prevent Rh1.} Kxh7 {[%emt 0:00:00]} 54. Rg1 {[%emt 0:00:03]} Ra3 {[%emt 0:00:00]} 55. Rg4 {[%emt 0:01:30]} Kh6 {[%emt 0:00:22]} 56. Kf2 {[%emt 0:00:28]} Ra1 {[%emt 0:00:22]} 57. Kg2 {[%emt 0:01:21]} Ra2+ {[%emt 0:00:28]} 58. Kg3 {[%emt 0:00:08]} Ra1 {[%emt 0:00:04]} 59. Rb4 {[%emt 0:00:13]} Kg5 {[%emt 0:02:14]} 60. Rb5+ {[%emt 0:00:06]} Kg6 {[%emt 0:00:00]} 61. Kg4 {[%emt 0:00:13]} Ra4+ {[%emt 0:00:00]} 62. f4 {[%emt 0:00:10]} Ra6 {[%emt 0:00:00]} 63. Rg5+ {[%emt 0:00:05]} Kf6 {[%emt 0:00:36]} 64. Rh5 {[%emt 0:00:23] White wants to mate with Rh6+.} Ra1 {[%emt 0:00:18]} 65. Rh6+ {[%emt 0:00:13]} Kg7 {[%emt 0:00:11]} 66. Rb6 {[%emt 0:00:09]} Ra5 {[%emt 0:00:23]} 67. Re6 {[%emt 0:00:35]} Rb5 {[%emt 0:00:13]} 68. f5 {[%emt 0:00:30]} Rb1 {[%emt 0:00:29]} 69. Kg5 {[%emt 0:01:32]} Rg1+ {[%emt 0:00:28]} 70. Kf4 {[%emt 0:00:00]} Rf1+ {[%emt 0:00:16]} 71. Ke5 {[%emt 0:00:02]} Re1+ {[%emt 0:00:13]} 72. Kd6 {[%emt 0:00:02]} Rf1 {[%emt 0:00:11]} 73. Rg6+ {[%emt 0:01:52]} Kf7 {[%emt 0:00:05]} 74. Ke5 {[%emt 0:00:23]} Re1+ {[%emt 0:00:05]} 75. Kf4 {[%emt 0:00:08]} Rf1+ {[%emt 0:00:04]} 76. Kg5 {[%emt 0:00:24]} Rg1+ {[%emt 0:00:10]} 77. Kh6 {[%emt 0:00:06]} Rh1+ {[%emt 0:00:05]} 78. Kg5 {[%emt 0:00:14]} Rg1+ {[%emt 0:00:05]} 79. Kf4 {[%emt 0:00:21]} Rxg6 {[%emt 0:00:07]} 80. fxg6+ {[%emt 0:00:04]} Kxg6 {[%emt 0:00:08] White really could win this.  Weighted Error Value: White=0.19 (very precise) /Black=0.10 (very precise)} 1/2-1/2

[Event "Charlotte IM-D May 2022"]
[Site "Charlotte"]
[Date "2022.05.08"]
[Round "7.3"]
[White "Matros, Alexander"]
[Black "Wang, Eigen"]
[Result "1/2-1/2"]
[ECO "E51"]
[WhiteElo "2339"]
[BlackElo "2269"]
[Annotator "TA"]
[PlyCount "66"]
[EventDate "2022.05.04"]
[EventType "tourn"]
[EventCountry "USA"]
[SourceTitle "playchess.com"]
[Source "ChessBase"]
[SourceQuality "1"]
[TimeControl "5400+30"]

{[%evp 10,66,-2,-3,12,-2,53,49,45,46,46,52,57,53,77,61,114,106,114,108,101,25,23,-4,0,0,0,0,0,0,0,-7,0,-8,7,0,0,0,8,8,52,37,42,54,59,40,51,13,15,11,12,0,0,0,0,0,0,0,0]} 1. d4 {[%emt 0:00:04]} Nf6 {[%emt 0:00:20]} 2. c4 {[%emt 0:00:21]} e6 {[%emt 0:00:09]} 3. Nc3 {[%emt 0:00:18]} Bb4 {[%emt 0:00:08]} 4. Bd2 {[%emt 0:01:22]} O-O {[%emt 0:00:14]} 5. e3 {[%emt 0:00:25]} d5 {[%emt 0:00:43]} 6. Nf3 {[%emt 0:00:34]} a6 {[%emt 0:09:33] E51: Nimzo-Indian: Rubinstein: 4...0-0 5 Nf3 d5.} 7. Rc1 {[%emt 0:06:11]} Nc6 {[%emt 0:04:50]} ({Better is} 7... b6 $11) 8. a3 $14 {[%emt 0:04:00]} Bd6 {[%emt 0:05:47] White is slightly better.} 9. c5 {[%emt 0:04:57]} Be7 {[%emt 0:01:23]} 10. Bd3 {[%emt 0:00:39]} Re8 {[%emt 0:12:02][%cal Oe6e5] [#]} 11. Qc2 $146 {[%emt 0:05:30]} ({Predecessor:} 11. b4 e5 12. Nxe5 Nxe5 13. dxe5 Ng4 14. O-O d4 15. Ne4 Nxe5 16. Bb1 dxe3 17. Bxe3 Qxd1 18. Rfxd1 {1-0 (33) Hort,V-Novak,E Havirov 1970}) 11... h6 {[%emt 0:05:35][%cal Oe6e5]} 12. b4 {[%emt 0:25:50]} e5 {[%emt 0:13:53]} (12... Bf8 $14) 13. Nxe5 $16 {[%emt 0:12:32] White is more active.} Nxe5 {[%emt 0:00:11]} 14. dxe5 {[%emt 0:00:03]} Ng4 {[%emt 0:00:14]} 15. O-O {[%emt 0:00:50]} (15. f4 $16) 15... Nxe5 $11 {[%emt 0:00:32]} 16. Ne2 {[%emt 0:00:48]} Bf6 {[%emt 0:14:16]} 17. Bc3 {[%emt 0:02:11]} c6 {[%emt 0:05:54]} 18. Bd4 {[%emt 0:00:44]} Bg4 {[%emt 0:01:22]} 19. f3 {[%emt 0:06:20]} Bd7 {[%emt 0:02:39]} 20. Nc3 {[%emt 0:06:27]} h5 {[%emt 0:05:12]} 21. Kh1 {[%emt 0:01:07]} h4 {[%emt 0:01:28]} 22. h3 {[%emt 0:01:09]} Nxd3 {[%emt 0:04:08]} 23. Qxd3 {[%emt 0:00:03]} Bxd4 {[%emt 0:00:47]} 24. Qxd4 {[%emt 0:00:43]} Qg5 {[%emt 0:00:40]} 25. e4 {[%emt 0:03:05][%cal Re4d5]} Rad8 {[%emt 0:03:41]} 26. f4 {[%emt 0:04:28]} Qh5 {[%emt 0:00:30]} 27. exd5 {[%emt 0:03:15]} cxd5 {[%emt 0:00:16]} 28. Rce1 {[%emt 0:00:13]} ({Not} 28. Qxd5 $2 Qxd5 29. Nxd5 Bc6 $19) ({Don't go for} 28. Nxd5 $2 Be6 29. Nf6+ (29. Ne7+ $2 Kf8 $19) 29... gxf6 30. Qxf6 Rd2 $19) 28... Bb5 {[%emt 0:04:30][%cal Bd7b5,Bb5c4,Bc4b3][%mdl 32] The position is equal.} (28... Rxe1 {seems wilder.} 29. Rxe1 Bxh3 30. Re5 Bxg2+ 31. Kxg2 Qg4+) 29. Rxe8+ {[%emt 0:04:04]} Rxe8 {[%emt 0:00:19]} 30. Rd1 {[%emt 0:00:13]} Bc4 {[%emt 0:00:20]} 31. Qd2 {[%emt 0:02:08]} ({Don't blunder} 31. Nxd5 $2 Bxd5 32. Kh2 Bc6 $19) 31... Qf5 {[%emt 0:00:41]} 32. Kg1 {[%emt 0:02:50][%cal Rc3d5]} Bb3 {[%emt 0:01:09]} 33. Rf1 {[%emt 0:01:01]} Bc4 {[%emt 0:00:39] Weighted Error Value: White=0.09 (flawless) /Black=0.11 (very precise)} 1/2-1/2